Workbook

Sheet 目录
A1: 目录
A2: 附表3-1 | B2: 部门预算收支总表
A3: 附表3-2 | B3: 部门预算收入总表
A4: 附表3-3 | B4: 部门预算支出总表
A5: 附表3-4 | B5: 部门预算财政拨款收支总表
A6: 附表3-5 | B6: 部门预算一般公共预算财政拨款支出表
A7: 附表3-6 | B7: 部门预算一般公共预算财政拨款基本支出表
A8: 附表3-7 | B8: 部门预算政府性基金预算财政拨款支出表
A9: 附表3-8 | B9: 部门预算国有资本经营预算财政拨款支出表
A10: 附表3-9 | B10: 部门预算财政拨款“三公”经费支出表

Sheet 附表3-1
A1: 附表3-1
A2: 部门预算收支总表
D3: 公开01表
D4: 单位：万元
A5: 收入 | C5: 支出
A6: 项 目 | B6: 预算数 | C6: 项 目 | D6: 预算数
A7: 一、财政拨款收入 | B7: 3324.42 | C7: 一、一般公共服务支出
A8: 二、上级补助收入 | C8: 二、外交支出
A9: 三、事业收入 | C9: 三、国防支出
A10: 四、经营收入 | C10: 四、公共安全支出
A11: 五、附属单位上缴收入 | C11: 五、教育支出
A12: 六、其他收入 | C12: 六、科学技术支出
C13: 七、文化体育与传媒支出
C14: 八、社会保障和就业支出 | D14: 23.63
C15: 九、医疗卫生与计划生育支出 | D15: 31.22
C16: 十、节能环保支出
C17: 十一、城乡社区支出 | D17: 2761.16
C18: 十二、农林水支出
C19: 十三、交通运输支出
C20: 十四、资源勘探信息等支出
C21: 十五、商业服务业等支出
C22: 十六、金融支出
C23: 十七、援助其他地区支出
C24: 十八、国土海洋气象等支出 | D24: 484.38
C25: 十九、住房保障支出 | D25: 24.03
C26: 二十、粮油物资储备支出
C27: 二十一、国债还本付息支出
C28: 二十二、其他支出
A29: 本年收入合计 | B29: 3324.42 | C29: 本年支出合计 | D29: =SUM(D14:D25) -> 3324.42
A30: 用事业基金弥补收支差额 | C30: 结余分配
A31: 年初结转和结余 | C31: 年末结转和结余
A32: 合计 | B32: 3324.42 | C32: 合计 | D32: 3324.42

Sheet 附表3-2
A1: 附表3-2
A2: 部门预算收入总表
J3: 公开02表
J4: 单位：万元
A5: 科目 | D5: 本年收入合计 | E5: 财政拨款收入 | F5: 上级补助收入 | G5: 事业收入 | H5: 经营收入 | I5: 附属单位上缴收入 | J5: 其他收入
A6: 功能分类科目编码 | C6: 科目名称
A8: 合计 | D8: =E8 -> 3324.42 | E8: =SUM(E9:E15) -> 3324.42
A9: 2080501 | C9: 行政单位离退休 | D9: =E9 -> 23.63 | E9: 23.63
A10: 2101101 | C10: 行政单位医疗 | D10: 30.92 | E10: 30.92
A11: 2210201 | C11: 住房公积金 | D11: 24.03 | E11: 24.03
A12: 2200101 | C12: 行政运行 | D12: 484.38 | E12: 484.38
A13: 2100717 | C13: 计划生育服务 | D13: 0.30 | E13: 0.30
A14: 2120801 | C14: 征地和拆迁补偿 | D14: 2611.16 | E14: 2611.16
A15: 2120806 | C15: 土地出让业务支出 | D15: 150.00 | E15: 150.00

Sheet 附表3-3
A1: 附表3-3
A2: 部门预算支出总表
I3: 公开03表
I4: 单位：万元
A5: 科目 | D5: 本年支出合计 | E5: 基本支出 | F5: 项目支出 | G5: 上缴上级支出 | H5: 经营支出 | I5: 对附属单位补助支出
A6: 功能分类科目编码 | C6: 科目名称
A8: 合计 | D8: =E8+F8 -> 3324.42 | E8: =SUM(E9:E15) -> 562.96 | F8: =SUM(F9:F15) -> 2761.46
A9: 2080501 | C9: 行政单位离退休 | D9: =E9 -> 23.63 | E9: 23.63
A10: 2101101 | C10: 行政单位医疗 | D10: 30.92 | E10: 30.92
A11: 2210201 | C11: 住房公积金 | D11: 24.03 | E11: 24.03
A12: 2200101 | C12: 行政运行 | D12: 484.38 | E12: 484.38
A13: 2100717 | C13: 计划生育服务 | D13: 0.00 | F13: 0.30
A14: 2120801 | C14: 征地和拆迁补偿 | D14: 0.00 | F14: 2611.16
A15: 2120806 | C15: 土地出让业务支出 | D15: 0.00 | F15: 150.00

Sheet 附表3-4
A1: 附表3-4
A2: 部门预算财政拨款收支总表
G3: 公开04表
G4: 单位：万元
A5: 收入 | C5: 支出
A6: 项 目 | B6: 金额 | C6: 项 目 | D6: 合计 | E6: 一般公共预算财政拨款 | F6: 政府性基金预算财政拨款 | G6: 国有资本经营预算财政拨款
A7: 一、一般公共预算财政拨款 | B7: 563.26 | C7: 一、一般公共服务支出
A8: 二、政府性基金预算财政拨款 | B8: 2761.16 | C8: 二、外交支出
A9: 三、国有资本经营预算财政拨款 | C9: 三、国防支出
C10: 四、公共安全支出
C11: 五、教育支出
C12: 六、科学技术支出
C13: 七、文化体育与传媒支出
C14: 八、社会保障和就业支出 | D14: 23.63 | E14: 23.63
C15: 九、医疗卫生与计划生育支出 | D15: 31.22 | E15: 31.22
C16: 十、节能环保支出
C17: 十一、城乡社区支出 | D17: 2761.16 | F17: 2761.16
C18: 十二、农林水支出
C19: 十三、交通运输支出
C20: 十四、资源勘探信息等支出
C21: 十五、商业服务业等支出
C22: 十六、金融支出
C23: 十七、援助其他地区支出
C24: 十八、国土海洋气象等支出 | D24: =E24+F24 -> 484.38 | E24: 484.38
C25: 十九、住房保障支出 | D25: =E25+F25 -> 24.03 | E25: 24.03
C26: 二十、粮油物资储备支出
C27: 二十一、国债还本付息支出
C28: 二十二、其他支出
A29: 本年收入合计 | B29: =B7+B8+B9 -> 3324.42 | C29: 本年支出合计 | D29: =SUM(D7:D28) -> 3324.42 | E29: =SUM(E7:E28) -> 563.26 | F29: 2761.16
A30: 年初财政拨款结转和结余 | C30: 年末结转和结余
A31: 合计 | B31: 3324.42 | C31: 合计 | D31: 3324.42 | E31: 562.96 | F31: 2761.46

Sheet 附表3-5
A2: 部门预算一般公共预算财政拨款支出表
F3: 公开05表
F4: 单位：万元
A5: 科目 | D5: 合计 | E5: 基本支出 | F5: 项目支出
A6: 功能分类科目编码 | C6: 科目名称
A9: 合计 | D9: =E9+F9 -> 563.26 | E9: =SUM(E10:E14) -> 562.96 | F9: =SUM(F10:F14) -> 0.30
A10: 2080501 | C10: 行政单位离退休 | D10: =E10+F10 -> 23.63 | E10: 23.63
A11: 2101101 | C11: 行政单位医疗 | D11: 30.92 | E11: 30.92
A12: 2210201 | C12: 住房公积金 | D12: 24.03 | E12: 24.03
A13: 2200101 | C13: 行政运行 | D13: 484.38 | E13: 484.38
A14: 2100717 | C14: 计划生育服务 | D14: 0.30 | F14: 0.30

Sheet 附表3-6
A1: 附表3-6
A2: 部门预算一般公共预算财政拨款基本支出表
F3: 公开06表
F4: 单位：万元
A5: 科目 | D5: 基本支出
A6: 经济分类科目编码 | C6: 科目名称 | D6: 合计 | E6: 人员经费 | F6: 公用经费
A7: 合计 | D7: =E7+F7 -> 562.96 | E7: =E8+E36 -> 500.01 | F7: =F68+F93 -> 62.95
C8: 一、工资福利支出 | D8: =E8+F8 -> 433.94 | E8: =E9+E10+E16+E17+E27+E28+E31 -> 433.94
A9: 30101 | C9: 1、基本工资 | D9: 104.77 | E9: 104.77
A10: 30102 | C10: 2、津贴补贴 | D10: 129.29 | E10: =E11+E12+E13+E14+E15 -> 129.29
A11: 30102 | C11: （1）工作津贴 | D11: 36.97 | E11: 36.97
A12: 30102 | C12: （2）生活补贴 | D12: 55.46 | E12: 55.46
C13: （3）（特殊）岗位津贴（补贴）
C14: （4）规范津贴补贴后仍继续保留的补贴
C15: （5）上述项目之外的津贴补贴 | D15: 36.86 | E15: 36.86
A16: 30103 | C16: 3、年终一次性奖金 | D16: 8.62 | E16: 8.62
A17: 30104 | C17: 4、社会保障缴费 | D17: 88.10 | E17: =E18+E19+E20+E21+E22+E23+E24+E25+E26 -> 88.1
A18: 30104 | C18: （1）基本养老保险费 | D18: 56.07 | E18: 56.07
A19: 30104 | C19: （2）基本医疗保险费 | D19: 30.04 | E19: 30.04
A20: 30104 | C20: （3）大病医疗保险费 | D20: 0.37 | E20: 0.37
A21: 30104 | C21: （4）公务员医疗补助
A22: 30104 | C22: （5）事业单位补充医疗保险费
A23: 30104 | C23: （6）事业单位失业保险费 | D23: 0.74 | E23: 0.74
A24: 30104 | C24: （7）工伤保险费 | D24: 0.37 | E24: 0.37
A25: 30104 | C25: (8) 生育保险 | D25: 0.51 | E25: 0.51
A26: 30104 | C26: （9）其他社保缴费
C27: 5、伙食补助费
A28: 30107 | C28: 6、绩效工资 | D28: 2.98 | E28: 2.98
A29: 30107 | C29: (1)基础绩效工资 | D29: 2.08 | E29: 2.08
A30: 30107 | C30: (2)奖励绩效工资 | D30: 0.90 | E30: 0.9
A31: 30199 | C31: 7、其他工资福利支出 | D31: 100.18 | E31: =E32+E33+E34+E35 -> 100.18
A32: 30199 | C32: (1)长期聘用人员和长期临时工工资 | D32: 75.78 | E32: 75.78
A33: 30199 | C33: (2)长期聘用人员和长期临时工社保缴费 | D33: 24.40 | E33: 24.4
A34: 30199 | C34: (3)长期聘用人员和长期临时工住房公积金
A35: 30199 | C35: （4）其他
C36: 二、对个人和家庭的补助 | D36: 66.07 | E36: =E37+E43+E49+E50+E51+E52+E53+E54+E57+E58+E59 -> 66.07
A37: 30302 | C37: 1.行政单位退休费 | D37: 23.63 | E37: =E38+E39+E40+E41+E42 -> 23.63
A38: 30302 | C38: (1)退休金 | D38: 7.14 | E38: 7.14
A39: 30302 | C39: (2)退休人员补贴 | D39: 11.70 | E39: 11.7
A40: 30302 | C40: (3)退休人员特殊补贴
A41: 30302 | C41: (4)退休人员上述项目之外的补贴 | D41: 4.79 | E41: 4.79
C42: (5)社保机构开支人员单位应负但的退休费
C43: 2.事业单位退休费
C44: (1)退休金
C45: (2)退休人员补贴
C46: (3)退休人员特殊补贴
C47: (4)退休人员上述项目之外的补贴
C48: (5)社保机构开支人员单位应负但的退休费
C49: 3.退职（役）费
C50: 4.抚恤金
C51: 5.生活补助
C52: 6.医疗费
C53: 7.助学金
A54: 30309 | C54: 8.奖励金 | D54: 0.10 | E54: =E55+E56 -> 0.1
A55: 30309 | C55: （1）独生子女父母奖励 | D55: 0.10 | E55: 0.1
C56: （2）其他奖励金
A57: 30311 | C57: 9.住房公积金 | D57: 24.03 | E57: 24.03
C58: 10.购房补贴
A59: 30399 | C59: 11.其他对个人和家庭的补助支出 | D59: 18.31 | E59: =E60+E65+E66 -> 18.31
A60: 30399 | C60: （1）住宅取暖费 | D60: 18.31 | E60: =E61+E62+E63+E64 -> 18.31
A61: 30399 | C61: 1）在职住宅取暖费 | D61: 16.74 | E61: 16.74
A62: 30399 | C62: 2）离休住宅取暖费
A63: 30399 | C63: 3）退休住宅取暖费 | D63: 1.57 | E63: 1.57
A64: 30399 | C64: 4）退职住宅取暖费
C65: （2）其他（社区）
C66: （3）其他（村）
C67: 日常公用：
C68: 1.基础定额项目 | D68: 57.73 | F68: =F69+F70+F71+F72+F73+F74+F75+F76+F77+F78+F79+F80+F81+F82+F83+F84+F85+F86+F87+F88+F89+F90+F91+F92 -> 57.73
A69: 30201 | C69: （1）办公费 | D69: 4.20 | F69: 4.2
A70: 30205 | C70: （2）水费 | D70: 7.10 | F70: 7.1
A71: 30206 | C71: （3）电费 | D71: 10.30 | F71: 10.3
A72: 30207 | C72: （4）邮电费 | D72: =E72+F72 -> 3.10 | F72: 3.1
A73: 30208 | C73: （5）办公取暖费 | D73: =E73+F73 -> 6.30 | F73: 6.3
C74: （6）物业管理费
A75: 30211 | C75: （7）差旅费 | D75: =E75+F75 -> 3.00 | F75: 3
A76: 30213 | C76: （8）维修（护）费
A77: 30215 | C77: （9）会议费 | D77: =E77+F77 -> 0.94 | F77: 0.94
C78: （10）办公设备购置费
C79: （11）因公出国（境）费用
A80: 30231 | C80: （12）公务用车运行维护费 | D80: =E80+F80 -> 19.50 | F80: 19.5
C81: （13）其他交通费
C82: （14）公务交通补贴
C83: （15）印刷费
C84: （16）咨询费
C85: （17）手续费
A86: 30214 | C86: （18）租赁费 | D86: =E86+F86 -> 3.00 | F86: 3
C87: （19）专用材料费
C88: （20）被装购置费
C89: （21）专用燃料费
C90: （22）劳务费
C91: （23）委托业务费
A92: 30299 | C92: （24）其他 | D92: =E92+F92 -> 0.29 | F92: 0.29
C93: 2.按规定比例计提项目 | D93: =E93+F93 -> 5.22 | F93: =F94+F95+F96+F97+F98 -> 5.22
A94: 30216 | C94: （1）培训费 | D94: =E94+F94 -> 1.20 | F94: 1.2
C95: （2）公务接待费
A96: 30228 | C96: （3）工会经费 | D96: =E96+F96 -> 4.02 | F96: 4.02
C97: （4）福利费
C98: （5）党组织活动经费

Sheet 附表3-7
A1: 附表3-7
A2: 部门预算政府性基金预算财政拨款支出表
F4: 单位：万元
A5: 科目 | D5: 合计 | E5: 基本支出 | F5: 项目支出
A6: 功能分类科目编码 | C6: 科目名称
A9: 合计 | D9: =E9+F9 -> 2,761.16 | F9: =SUM(F10:F12) -> 2,761.16
A10: 2120801 | C10: 补充耕地 | D10: =E10+F10 -> 50.00 | F10: 50.00
A11: 2120801 | C11: 征地拆迁补偿 | D11: 2,561.16 | F11: 2561.16
A12: 2120801 | C12: 定点放线测绘业务费 | D12: 150.00 | F12: 150

Sheet 附表3-8
A1: 附表3-8
A2: 部门预算国有资本经营预算财政拨款支出表
F4: 单位：万元
A5: 科目 | D5: 合计 | E5: 基本支出 | F5: 项目支出
A6: 功能分类科目编码 | C6: 科目名称
A9: 合计
A16: 此表无数据

Sheet 附表3-9
A1: 附表3-9
A2: 部门预算财政拨款“三公”经费支出表
E3: 公开07表
E4: 单位：万元
A5: 项目 | B5: 资金来源
B6: 合计 | C6: 一般公共预算财政拨款 | D6: 政府性基金财政拨款 | E6: 国有资本经营预算财政拨款
A7: 合计 | B7: 19.5 | C7: =C8+C9+C12 -> 19.5
A8: 一、因公出国（境）费
A9: 二、公务用车购置及运行费 | B9: 19.5 | C9: 19.5
A10: 其中：公务用车购置费
A11: 公务用车运行费 | B11: 19.5 | C11: 19.5
A12: 三、公务接待费
